[Event "GER-chT Youth Countries 2020"]
[Site "Berlin"]
[Date "2020.10.02"]
[Round "5"]
[White "Faerber, David"]
[Black "Richter, Nils"]
[Result "1/2-1/2"]
[ECO "B11"]
[WhiteElo "2321"]
[BlackElo "2307"]
[Annotator "ChessBase"]
[PlyCount "40"]
[EventDate "2020.09.30"]
[EventType "team-tourn"]
[EventRounds "7"]
[EventCountry "GER"]
[SourceTitle "playchess.com"]
[Source "ChessBase"]
[SourceQuality "1"]
[TimeControl "30/5400+30:0"]

1. e4 {[%emt 0:00:00]} c6 {[%emt 0:00:00]} 2. Nf3 {[%emt 0:00:00]} d5 {[%emt 0:00:00]} 3. Nc3 {[%emt 0:00:01]} Bg4 {[%emt 0:00:11]} 4. h3 {[%emt 0:00:10]} Bxf3 {[%emt 0:00:08]} 5. Qxf3 {[%emt 0:00:07]} e6 {[%emt 0:00:16]} 6. Be2 {[%emt 0:00:40]} Nd7 {[%emt 0:01:22]} 7. O-O {[%emt 0:07:06]} Ngf6 {[%emt 0:04:24]} 8. d4 {[%emt 0:00:54]} dxe4 {[%emt 0:01:48]} 9. Nxe4 {[%emt 0:00:15]} Be7 {[%emt 0:00:35]} 10. c4 {[%emt 0:17:20]} Nxe4 {[%emt 0:06:45]} 11. Qxe4 {[%emt 0:00:09]} Nf6 {[%emt 0:00:15]} 12. Qe3 {[%emt 0:01:24]} O-O {[%emt 0:01:02]} 13. b3 {[%emt 0:01:17]} Qa5 {[%emt 0:08:33]} 14. a4 {[%emt 0:13:34]} Nd7 {[%emt 0:23:42]} 15. Rd1 {[%emt 0:11:17]} Bf6 {[%emt 0:02:50]} 16. Bb2 {[%emt 0:10:59]} c5 {[%emt 0:08:12]} 17. Bc3 {[%emt 0:08:37]} cxd4 {[%emt 0:06:59]} 18. Bxd4 {[%emt 0:03:20]} Rad8 {[%emt 0:04:44]} 19. Bxf6 {[%emt 0:02:28]} Nxf6 {[%emt 0:00:03]} 20. Bf3 {[%emt 0:00:16]} b6 {[%emt 0:01:14]} 1/2-1/2

[Event "GER-chT Youth Countries 2020"]
[Site "Berlin"]
[Date "2020.10.02"]
[Round "5"]
[White "Mueller, Maximilian"]
[Black "Bildat, Emilia"]
[Result "0-1"]
[ECO "B27"]
[WhiteElo "2303"]
[BlackElo "1704"]
[Annotator "ChessBase"]
[PlyCount "86"]
[EventDate "2020.09.30"]
[EventType "team-tourn"]
[EventRounds "7"]
[EventCountry "GER"]
[SourceTitle "playchess.com"]
[Source "ChessBase"]
[SourceQuality "1"]
[TimeControl "30/5400+30:0"]

1. e4 {[%emt 0:00:00]} c5 {[%emt 0:00:00]} 2. Nf3 {[%emt 0:00:00]} g6 {[%emt 0:00:02]} 3. d4 {[%emt 0:00:00]} cxd4 {[%emt 0:00:22]} 4. Qxd4 {[%emt 0:00:00]} Nf6 {[%emt 0:00:10]} 5. Nc3 {[%emt 0:00:00]} Nc6 {[%emt 0:00:45]} 6. Qa4 {[%emt 0:00:33]} d6 {[%emt 0:00:52]} 7. e5 {[%emt 0:00:28]} dxe5 {[%emt 0:00:12]} 8. Nxe5 {[%emt 0:00:08]} Bg7 {[%emt 0:02:13]} 9. Bb5 {[%emt 0:02:02]} O-O {[%emt 0:00:23]} 10. Nxc6 {[%emt 0:03:51]} bxc6 {[%emt 0:00:07]} 11. Bxc6 {[%emt 0:01:27]} Bd7 {[%emt 0:00:31]} 12. Bxd7 {[%emt 0:00:47]} Qxd7 {[%emt 0:00:13]} 13. Qxd7 {[%emt 0:10:11]} Nxd7 {[%emt 0:00:06]} 14. Bd2 {[%emt 0:04:25]} Nb6 {[%emt 0:02:37]} 15. O-O-O {[%emt 0:06:01]} Nc4 {[%emt 0:02:59]} 16. Na4 {[%emt 0:03:06]} Rab8 {[%emt 0:03:57]} 17. b3 {[%emt 0:01:08]} Rfc8 {[%emt 0:06:22]} 18. Bf4 {[%emt 0:06:22]} Rb7 {[%emt 0:01:44]} 19. bxc4 {[%emt 0:05:55]} Rb4 {[%emt 0:01:09]} 20. Nc5 {[%emt 0:00:38]} Bb2+ {[%emt 0:02:38]} 21. Kd2 {[%emt 0:00:30]} Rxc5 {[%emt 0:01:08]} 22. Bh6 {[%emt 0:06:37]} Rbxc4 {[%emt 0:02:10]} 23. Ke1 {[%emt 0:01:13]} Rc8 {[%emt 0:01:56]} 24. Kf1 {[%emt 0:00:43]} Rxc2 {[%emt 0:01:52]} 25. g3 {[%emt 0:00:59]} Bg7 {[%emt 0:01:35]} 26. Bxg7 {[%emt 0:02:38]} Kxg7 {[%emt 0:00:08]} 27. Kg2 {[%emt 0:05:58]} Rxa2 {[%emt 0:01:19]} 28. Ra1 {[%emt 0:00:23]} Rcc2 {[%emt 0:05:21]} 29. Rxa2 {[%emt 0:00:38]} Rxa2 {[%emt 0:00:06]} 30. Rc1 {[%emt 0:00:14]} a5 {[%emt 0:00:45]} 31. Rc7 {[%emt 1:30:35]} e6 {[%emt 1:31:57]} 32. Ra7 {[%emt 0:00:16]} a4 {[%emt 0:00:08]} 33. Kf3 {[%emt 0:00:30]} a3 {[%emt 0:00:39]} 34. h4 {[%emt 0:01:16]} Ra1 {[%emt 0:05:10]} 35. Kg4 {[%emt 0:03:57]} a2 {[%emt 0:02:58]} 36. Kf3 {[%emt 0:00:15]} Kf6 {[%emt 0:02:15]} 37. Kf4 {[%emt 0:01:08]} e5+ {[%emt 0:02:54]} 38. Kg4 {[%emt 0:01:34]} h5+ {[%emt 0:00:59]} 39. Kf3 {[%emt 0:00:29]} e4+ {[%emt 0:01:04]} 40. Kf4 {[%emt 0:00:58]} e3 {[%emt 0:00:19]} 41. Ra6+ {[%emt 0:01:31]} Kg7 {[%emt 0:00:18]} 42. Kf3 {[%emt 0:00:31]} exf2 {[%emt 0:00:07]} 43. Kxf2 {[%emt 0:00:03]} Rh1 0-1

[Event "GER-chT Youth Countries 2020"]
[Site "Berlin"]
[Date "2020.10.02"]
[Round "5"]
[White "Koelle, Tobias"]
[Black "Schmider, Niklas"]
[Result "1-0"]
[ECO "D70"]
[WhiteElo "2275"]
[BlackElo "2291"]
[Annotator "ChessBase"]
[PlyCount "67"]
[EventDate "2020.09.30"]
[EventType "team-tourn"]
[EventRounds "7"]
[EventCountry "GER"]
[SourceTitle "playchess.com"]
[Source "ChessBase"]
[SourceQuality "1"]
[TimeControl "30/5400+30:0"]

1. d4 {[%emt 0:00:00]} Nf6 {[%emt 0:00:00]} 2. c4 {[%emt 0:00:00]} g6 {[%emt 0:00:00]} 3. f3 {[%emt 0:00:00]} d5 {[%emt 0:00:00]} 4. cxd5 {[%emt 0:00:00]} Nxd5 {[%emt 0:00:00]} 5. e4 {[%emt 0:00:00]} Nb6 {[%emt 0:00:00]} 6. Nc3 {[%emt 0:00:00]} Bg7 {[%emt 0:00:00]} 7. Be3 {[%emt 0:00:00]} O-O {[%emt 0:00:06]} 8. Qd2 {[%emt 0:00:02]} Nc6 {[%emt 0:00:07]} 9. O-O-O {[%emt 0:00:06]} Qd6 {[%emt 0:00:02]} 10. Nb5 {[%emt 0:00:07]} Qd7 {[%emt 0:00:06]} 11. Kb1 {[%emt 0:00:04]} Rd8 {[%emt 0:00:06]} 12. d5 {[%emt 0:00:06]} a6 {[%emt 0:00:48]} 13. Nc3 {[%emt 0:00:05]} Qe8 {[%emt 0:00:13]} 14. Qc1 {[%emt 0:00:06]} Na5 {[%emt 0:01:25]} 15. Bf4 {[%emt 0:00:54]} Rd7 {[%emt 0:04:36]} 16. h4 {[%emt 0:06:08]} e6 {[%emt 0:02:05]} 17. h5 {[%emt 0:07:29]} exd5 {[%emt 0:00:34]} 18. Bh6 {[%emt 0:27:23]} Bh8 {[%emt 0:01:39]} 19. exd5 {[%emt 0:01:53]} Nac4 {[%emt 0:08:34]} 20. Bxc4 {[%emt 0:06:03]} Nxc4 {[%emt 0:01:29]} 21. Nge2 {[%emt 0:01:42]} Re7 {[%emt 0:08:58]} 22. Nd4 {[%emt 0:01:36]} Ne3 {[%emt 0:26:10]} 23. hxg6 {[%emt 0:03:16]} fxg6 {[%emt 0:02:03]} 24. Bxe3 {[%emt 0:03:27]} Rxe3 {[%emt 0:00:06]} 25. Ne6 {[%emt 0:07:29]} Rxc3 {[%emt 0:16:04]} 26. bxc3 {[%emt 0:02:31]} Qb5+ {[%emt 0:00:53]} 27. Qb2 {[%emt 0:01:31]} Bxc3 {[%emt 0:00:10]} 28. Qxb5 {[%emt 0:00:59]} axb5 {[%emt 0:00:06]} 29. g4 {[%emt 0:01:34]} Be5 {[%emt 0:05:10]} 30. Rhe1 {[%emt 0:05:32]} Bd6 {[%emt 0:01:10]} 31. Nxc7 {[%emt 1:31:22]} Bxc7 {[%emt 1:31:55]} 32. d6 {[%emt 0:00:01]} Bb6 {[%emt 0:00:41]} 33. d7 {[%emt 0:01:54]} Kf7 {[%emt 0:00:43]} 34. dxc8=Q {[%emt 0:00:57]} 1-0

[Event "GER-chT Youth Countries 2020"]
[Site "Berlin"]
[Date "2020.10.02"]
[Round "5"]
[White "Schneider, Jana"]
[Black "Kuznecovs, Nikita"]
[Result "1-0"]
[ECO "C02"]
[WhiteElo "2270"]
[BlackElo "2276"]
[Annotator "ChessBase"]
[PlyCount "113"]
[EventDate "2020.09.30"]
[EventType "team-tourn"]
[EventRounds "7"]
[EventCountry "GER"]
[SourceTitle "playchess.com"]
[Source "ChessBase"]
[SourceQuality "1"]
[TimeControl "30/5400+30:0"]

1. e4 {[%emt 0:00:00]} e6 {[%emt 0:00:00]} 2. d4 {[%emt 0:00:00]} d5 {[%emt 0:00:00]} 3. e5 {[%emt 0:00:00]} c5 {[%emt 0:00:00]} 4. c3 {[%emt 0:00:00]} Nc6 {[%emt 0:00:04]} 5. Nf3 {[%emt 0:00:00]} Qb6 {[%emt 0:00:08]} 6. a3 {[%emt 0:00:51]} c4 {[%emt 0:00:09]} 7. Nbd2 {[%emt 0:00:54]} Na5 {[%emt 0:00:12]} 8. Be2 {[%emt 0:00:37]} Bd7 {[%emt 0:00:14]} 9. O-O {[%emt 0:00:16]} Be7 {[%emt 0:02:39]} 10. a4 {[%emt 0:02:56]} f5 {[%emt 0:03:17]} 11. Ne1 {[%emt 0:10:07]} Nh6 {[%emt 0:01:20]} 12. b3 {[%emt 0:27:15]} cxb3 {[%emt 0:01:30]} 13. Ba3 {[%emt 0:03:22]} Bxa3 {[%emt 0:04:45]} 14. Rxa3 {[%emt 0:05:27]} Rc8 {[%emt 0:00:14]} 15. Nb1 {[%emt 0:07:24]} Nc4 {[%emt 0:04:09]} 16. Ra1 {[%emt 0:05:36]} O-O {[%emt 0:06:24]} 17. Nd3 {[%emt 0:00:28]} f4 {[%emt 0:00:19]} 18. Nd2 {[%emt 0:04:32]} Na5 {[%emt 0:00:56]} 19. Nc5 {[%emt 0:00:34]} Rxc5 {[%emt 0:05:07]} 20. dxc5 {[%emt 0:00:31]} Qc7 {[%emt 0:14:13]} 21. Bb5 {[%emt 0:06:17]} Bc8 {[%emt 0:08:49]} 22. Nxb3 {[%emt 0:06:24]} Nxb3 {[%emt 0:00:27]} 23. Qxb3 {[%emt 0:00:01]} f3 {[%emt 0:00:16]} 24. g3 {[%emt 0:04:06]} Qxe5 {[%emt 0:06:44]} 25. Rfe1 {[%emt 0:00:23]} Qh5 {[%emt 0:00:09]} 26. Bf1 {[%emt 0:00:22]} Ng4 {[%emt 0:00:35]} 27. h3 {[%emt 0:00:33]} Nf6 {[%emt 0:00:49]} 28. Qb4 {[%emt 0:01:49]} e5 {[%emt 0:09:17]} 29. Qh4 {[%emt 0:01:07]} Qxh4 {[%emt 0:00:40]} 30. gxh4 {[%emt 0:00:06]} e4 {[%emt 0:00:09]} 31. Rad1 {[%emt 1:31:33]} Kf7 {[%emt 1:37:05]} 32. c4 {[%emt 0:01:59]} dxc4 {[%emt 0:14:38]} 33. Bxc4+ {[%emt 0:00:10]} Be6 {[%emt 0:00:21]} 34. Bxe6+ {[%emt 0:02:24]} Kxe6 {[%emt 0:00:07]} 35. Rb1 {[%emt 0:01:02]} Rf7 {[%emt 0:00:18]} 36. Rb3 {[%emt 0:00:26]} Kd5 {[%emt 0:03:05]} 37. Reb1 {[%emt 0:00:33]} Kc6 {[%emt 0:00:19]} 38. Kh2 {[%emt 0:02:45]} Nd5 {[%emt 0:02:06]} 39. Kg3 {[%emt 0:03:39]} h5 {[%emt 0:04:58]} 40. Kh2 {[%emt 0:01:52]} Nf4 {[%emt 0:00:49]} 41. Re3 {[%emt 0:00:00]} Re7 {[%emt 0:00:00]} 42. Rb4 {[%emt 0:00:00]} Kd5 {[%emt 0:00:00]} 43. Reb3 {[%emt 0:00:00]} Re6 {[%emt 0:00:00]} 44. Rb1 {[%emt 0:00:00]} Nd3 {[%emt 0:00:00]} 45. Rxb7 {[%emt 0:00:00]} Nxf2 {[%emt 0:00:00]} 46. Rd7+ {[%emt 0:00:00]} Kxc5 {[%emt 0:00:00]} 47. Rc1+ {[%emt 0:00:00]} Kb6 {[%emt 0:00:00]} 48. a5+ {[%emt 0:00:00]} Ka6 {[%emt 0:00:00]} 49. Rcc7 {[%emt 0:00:00]} e3 {[%emt 0:00:00]} 50. Rxa7+ {[%emt 0:00:00]} Kb5 {[%emt 0:00:00]} 51. Rab7+ {[%emt 0:00:00]} Kxa5 {[%emt 0:00:00]} 52. Ra7+ {[%emt 0:00:41]} Kb6 {[%emt 0:00:00]} 53. Rab7+ {[%emt 0:00:09]} Kc5 {[%emt 0:00:00]} 54. Rbc7+ {[%emt 0:00:09]} Rc6 {[%emt 0:00:00]} 55. Kg3 {[%emt 0:00:14]} Ng4 {[%emt 0:00:00]} 56. hxg4 {[%emt 0:00:21]} g5 {[%emt 0:00:00]} 57. Kxf3 {[%emt 0:01:16]} 1-0

[Event "GER-chT Youth Countries 2020"]
[Site "Berlin"]
[Date "2020.10.02"]
[Round "5"]
[White "Dahl, Christoph"]
[Black "Khachatryan, Taron"]
[Result "1/2-1/2"]
[ECO "B97"]
[WhiteElo "2262"]
[BlackElo "2136"]
[Annotator "ChessBase"]
[PlyCount "75"]
[EventDate "2020.09.30"]
[EventType "team-tourn"]
[EventRounds "7"]
[EventCountry "GER"]
[SourceTitle "playchess.com"]
[Source "ChessBase"]
[SourceQuality "1"]
[TimeControl "30/5400+30:0"]

1. e4 {[%emt 0:00:00]} c5 {[%emt 0:00:00]} 2. Nf3 {[%emt 0:00:02]} d6 {[%emt 0:00:00]} 3. d4 {[%emt 0:00:25]} cxd4 {[%emt 0:00:00]} 4. Nxd4 {[%emt 0:00:31]} Nf6 {[%emt 0:00:02]} 5. Nc3 {[%emt 0:00:40]} a6 {[%emt 0:00:24]} 6. Bg5 {[%emt 0:00:46]} e6 {[%emt 0:00:08]} 7. f4 {[%emt 0:00:49]} Qb6 {[%emt 0:00:10]} 8. Qd3 {[%emt 0:01:55]} Qxb2 {[%emt 0:01:07]} 9. Rb1 {[%emt 0:00:56]} Qa3 {[%emt 0:00:17]} 10. f5 {[%emt 0:01:29]} Be7 {[%emt 0:01:08]} 11. Be2 {[%emt 0:00:52]} Qa5 {[%emt 0:02:17]} 12. Bd2 {[%emt 0:03:47]} Qc7 {[%emt 0:00:24]} 13. fxe6 {[%emt 0:02:56]} fxe6 {[%emt 0:00:43]} 14. O-O {[%emt 0:01:12]} Nc6 {[%emt 0:01:01]} 15. Nxc6 {[%emt 0:06:17]} Qxc6 {[%emt 0:01:35]} 16. Bf3 {[%emt 0:01:39]} O-O {[%emt 0:02:52]} 17. e5 {[%emt 0:06:24]} Qc5+ {[%emt 0:00:14]} 18. Be3 {[%emt 0:00:12]} Qxe5 {[%emt 0:00:11]} 19. Bd4 {[%emt 0:03:36]} Qa5 {[%emt 0:02:54]} 20. Bxb7 {[%emt 0:03:50]} Rb8 {[%emt 0:00:48]} 21. Bc6 {[%emt 0:02:26]} Rxb1 {[%emt 0:03:46]} 22. Rxb1 {[%emt 0:00:16]} d5 {[%emt 0:03:52]} 23. h3 {[%emt 0:04:00]} Qc7 {[%emt 0:03:06]} 24. Ba4 {[%emt 0:02:03]} Bc5 {[%emt 0:00:22]} 25. Qe3 {[%emt 0:00:42]} Bxd4 {[%emt 0:00:40]} 26. Qxd4 {[%emt 0:00:05]} Bd7 {[%emt 0:01:58]} 27. Bxd7 {[%emt 0:01:49]} Nxd7 {[%emt 0:00:21]} 28. Re1 {[%emt 0:03:48]} Rc8 {[%emt 0:03:21]} 29. Ne2 {[%emt 0:04:55]} Qc5 {[%emt 0:02:04]} 30. Qxc5 {[%emt 0:03:14]} Nxc5 {[%emt 0:01:21]} 31. Nd4 {[%emt 1:30:19]} Kf7 {[%emt 1:30:40]} 32. Rb1 {[%emt 0:01:59]} Rc7 {[%emt 0:05:28]} 33. Rb6 {[%emt 0:01:48]} Kf6 {[%emt 0:02:09]} 34. Kf2 {[%emt 0:01:27]} Ne4+ {[%emt 0:02:12]} 35. Kg1 {[%emt 0:00:18]} Nc5 {[%emt 0:00:10]} 36. Kf2 {[%emt 0:00:11]} a5 {[%emt 0:02:49]} 37. Ke3 {[%emt 0:01:48]} a4 {[%emt 0:01:14]} 38. Kf3 {[%emt 0:02:15]} 1/2-1/2

[Event "GER-chT Youth Countries 2020"]
[Site "Berlin"]
[Date "2020.10.02"]
[Round "5"]
[White "Niermann, Tristan"]
[Black "Ermitsch, Magnus"]
[Result "1-0"]
[ECO "E06"]
[WhiteElo "2262"]
[BlackElo "2025"]
[Annotator "ChessBase"]
[PlyCount "51"]
[EventDate "2020.09.30"]
[EventType "team-tourn"]
[EventRounds "7"]
[EventCountry "GER"]
[SourceTitle "playchess.com"]
[Source "ChessBase"]
[SourceQuality "1"]
[TimeControl "30/5400+30:0"]

1. d4 {[%emt 0:00:00]} Nf6 {[%emt 0:00:09]} 2. c4 {[%emt 0:00:00]} e6 {[%emt 0:00:43]} 3. g3 {[%emt 0:00:08]} d5 {[%emt 0:00:45]} 4. Nf3 {[%emt 0:00:13]} Be7 {[%emt 0:01:07]} 5. Bg2 {[%emt 0:00:07]} O-O {[%emt 0:01:31]} 6. O-O {[%emt 0:00:18]} dxc4 {[%emt 0:00:47]} 7. Qc2 {[%emt 0:00:25]} a6 {[%emt 0:01:02]} 8. a4 {[%emt 0:00:10]} Nbd7 {[%emt 0:02:53]} 9. Nbd2 {[%emt 0:05:43]} Nb6 {[%emt 0:07:19]} 10. a5 {[%emt 0:03:29]} Nbd5 {[%emt 0:01:17]} 11. Nxc4 {[%emt 0:02:58]} b5 {[%emt 0:00:58]} 12. axb6 {[%emt 0:07:55]} cxb6 {[%emt 0:00:35]} 13. Nfe5 {[%emt 0:01:24]} Bb7 {[%emt 0:02:45]} 14. Qb3 {[%emt 0:02:54]} Rb8 {[%emt 0:03:28]} 15. Bd2 {[%emt 0:06:44]} a5 {[%emt 0:06:48]} 16. Nd3 {[%emt 0:09:21]} Bc6 {[%emt 0:10:59]} 17. Rfc1 {[%emt 0:10:58]} a4 {[%emt 0:02:04]} 18. Qd1 {[%emt 0:02:52]} b5 {[%emt 0:03:46]} 19. Ba5 {[%emt 0:15:31]} Qe8 {[%emt 0:03:07]} 20. Nce5 {[%emt 0:00:37]} Ba8 {[%emt 0:02:08]} 21. Nc5 {[%emt 0:08:11]} Bd8 {[%emt 0:04:57]} 22. Be1 {[%emt 0:01:43]} Bb6 {[%emt 0:04:47]} 23. b3 {[%emt 0:00:46]} axb3 {[%emt 0:08:33]} 24. Qxb3 {[%emt 0:00:39]} Bxc5 {[%emt 0:08:43]} 25. dxc5 {[%emt 0:01:11]} Nd7 {[%emt 0:01:00]} 26. Nd3 {[%emt 0:00:36]} 1-0

[Event "GER-chT Youth Countries 2020"]
[Site "Berlin"]
[Date "2020.10.02"]
[Round "5"]
[White "Costa, Leonardo"]
[Black "Schubert, Nikita"]
[Result "1-0"]
[ECO "C54"]
[WhiteElo "2245"]
[BlackElo "1946"]
[Annotator "ChessBase"]
[PlyCount "61"]
[EventDate "2020.09.30"]
[EventType "team-tourn"]
[EventRounds "7"]
[EventCountry "GER"]
[SourceTitle "playchess.com"]
[Source "ChessBase"]
[SourceQuality "1"]
[TimeControl "30/5400+30:0"]

1. e4 {[%emt 0:00:00]} e5 {[%emt 0:00:00]} 2. Nf3 {[%emt 0:00:00]} Nc6 {[%emt 0:00:00]} 3. Bc4 {[%emt 0:00:00]} Bc5 {[%emt 0:00:00]} 4. c3 {[%emt 0:00:00]} Nf6 {[%emt 0:00:10]} 5. d3 {[%emt 0:00:00]} O-O {[%emt 0:00:19]} 6. O-O {[%emt 0:01:22]} d5 {[%emt 0:00:21]} 7. exd5 {[%emt 0:00:43]} Nxd5 {[%emt 0:00:09]} 8. Re1 {[%emt 0:08:28]} Bg4 {[%emt 0:00:11]} 9. h3 {[%emt 0:05:08]} Bh5 {[%emt 0:00:19]} 10. Nbd2 {[%emt 0:01:11]} Nb6 {[%emt 0:03:03]} 11. Bb5 {[%emt 0:02:57]} Bd6 {[%emt 0:01:09]} 12. Bxc6 {[%emt 0:03:35]} bxc6 {[%emt 0:00:12]} 13. Ne4 {[%emt 0:00:08]} f6 {[%emt 0:10:24]} 14. Ng3 {[%emt 0:06:17]} Bf7 {[%emt 0:01:56]} 15. Nh4 {[%emt 0:06:02]} Nd5 {[%emt 0:10:28]} 16. Nhf5 {[%emt 0:04:11]} Bg6 {[%emt 0:07:17]} 17. Qg4 {[%emt 0:05:55]} Qc8 {[%emt 0:02:16]} 18. Bd2 {[%emt 0:04:29]} Rb8 {[%emt 0:06:57]} 19. b3 {[%emt 0:01:42]} Kh8 {[%emt 0:03:02]} 20. Rad1 {[%emt 0:05:13]} Ne7 {[%emt 0:08:49]} 21. Nxe7 {[%emt 0:01:58]} Bxe7 {[%emt 0:00:51]} 22. Qf3 {[%emt 0:06:32]} Qa6 {[%emt 0:07:17]} 23. Be3 {[%emt 0:10:37]} Qxa2 {[%emt 0:09:23]} 24. Qxc6 {[%emt 0:07:10]} Qxb3 {[%emt 0:04:06]} 25. Qxc7 {[%emt 0:02:42]} Rb7 {[%emt 0:02:12]} 26. Qc6 {[%emt 0:00:38]} f5 {[%emt 0:03:46]} 27. Bd2 {[%emt 0:06:55]} Bf6 {[%emt 0:01:24]} 28. Qc5 {[%emt 0:04:12]} Rd8 {[%emt 0:02:18]} 29. d4 {[%emt 0:02:21]} exd4 {[%emt 0:07:33]} 30. cxd4 {[%emt 0:00:08]} Rbd7 {[%emt 0:04:29]} 31. Ba5 {[%emt 1:32:38]} 1-0

[Event "GER-chT Youth Countries 2020"]
[Site "Berlin"]
[Date "2020.10.02"]
[Round "5"]
[White "Hesse, Henrik"]
[Black "Krastev, Alexander"]
[Result "1/2-1/2"]
[ECO "A30"]
[WhiteElo "2242"]
[BlackElo "2340"]
[Annotator "ChessBase"]
[PlyCount "113"]
[EventDate "2020.09.30"]
[EventType "team-tourn"]
[EventRounds "7"]
[EventCountry "GER"]
[SourceTitle "playchess.com"]
[Source "ChessBase"]
[SourceQuality "1"]
[TimeControl "30/5400+30:0"]

1. c4 {[%emt 0:00:00]} c5 {[%emt 0:00:00]} 2. Nf3 {[%emt 0:00:03]} g6 {[%emt 0:00:00]} 3. d4 {[%emt 0:00:27]} Bg7 {[%emt 0:00:00]} 4. e4 {[%emt 0:03:20]} Nc6 {[%emt 0:00:00]} 5. dxc5 {[%emt 0:08:41]} Qa5+ {[%emt 0:00:00]} 6. Bd2 {[%emt 0:01:43]} Qxc5 {[%emt 0:00:04]} 7. Nc3 {[%emt 0:01:18]} Nf6 {[%emt 0:04:44]} 8. Be2 {[%emt 0:01:37]} O-O {[%emt 0:03:23]} 9. O-O {[%emt 0:00:51]} Nd4 {[%emt 0:06:16]} 10. Nxd4 {[%emt 0:13:32]} Qxd4 {[%emt 0:00:05]} 11. Be3 {[%emt 0:00:21]} Qxd1 {[%emt 0:01:32]} 12. Rfxd1 {[%emt 0:02:19]} d6 {[%emt 0:00:08]} 13. c5 {[%emt 0:03:12]} Ng4 {[%emt 0:12:43]} 14. Bxg4 {[%emt 0:11:12]} Bxg4 {[%emt 0:00:04]} 15. f3 {[%emt 0:00:05]} Be6 {[%emt 0:00:04]} 16. cxd6 {[%emt 0:00:06]} exd6 {[%emt 0:00:05]} 17. Rxd6 {[%emt 0:01:02]} Rfc8 {[%emt 0:01:38]} 18. Rd3 {[%emt 0:05:14]} Bxc3 {[%emt 0:02:21]} 19. bxc3 {[%emt 0:02:23]} Kf8 {[%emt 0:00:48]} 20. Bg5 {[%emt 0:07:48]} Kg7 {[%emt 0:02:29]} 21. e5 {[%emt 0:07:48]} h6 {[%emt 0:00:06]} 22. Bf6+ {[%emt 0:00:10]} Kh7 {[%emt 0:00:02]} 23. g4 {[%emt 0:01:27]} Rc4 {[%emt 0:02:15]} 24. h4 {[%emt 0:11:13]} Rac8 {[%emt 0:00:51]} 25. Rc1 {[%emt 0:02:21]} b5 {[%emt 0:06:05]} 26. a3 {[%emt 0:00:33]} a5 {[%emt 0:00:02]} 27. Rb1 {[%emt 0:01:51]} Ra4 {[%emt 0:00:31]} 28. Rxb5 {[%emt 0:08:39]} Rxa3 {[%emt 0:10:44]} 29. Kf2 {[%emt 0:01:14]} h5 {[%emt 0:17:47]} 30. g5 {[%emt 0:01:17]} a4 {[%emt 0:00:04]} 31. Ra5 {[%emt 1:31:09]} Ra2+ {[%emt 1:30:04]} 32. Kg3 {[%emt 0:00:14]} Ra1 {[%emt 0:00:04]} 33. c4 {[%emt 0:01:31]} a3 {[%emt 0:06:32]} 34. Rdxa3 {[%emt 0:01:08]} Rxa3 {[%emt 0:00:05]} 35. Rxa3 {[%emt 0:00:02]} Rxc4 {[%emt 0:00:23]} 36. Ra8 {[%emt 0:01:13]} Rc8 {[%emt 0:00:03]} 37. Ra7 {[%emt 0:00:13]} Kg8 {[%emt 0:00:29]} 38. Be7 {[%emt 0:00:53]} Rc4 {[%emt 0:00:35]} 39. Bf6 {[%emt 0:00:42]} Rc8 {[%emt 0:02:15]} 40. Kf4 {[%emt 0:00:31]} Rc4+ {[%emt 0:00:07]} 41. Ke3 {[%emt 0:00:29]} Rc8 {[%emt 0:00:05]} 42. Be7 {[%emt 0:00:00]} Rc3+ {[%emt 0:00:00]} 43. Kd4 {[%emt 0:00:00]} Rc4+ {[%emt 0:00:00]} 44. Kd3 {[%emt 0:00:00]} Rc8 {[%emt 0:00:00]} 45. Bd6 {[%emt 0:00:00]} Rc4 {[%emt 0:00:00]} 46. Be7 {[%emt 0:00:00]} Rc8 {[%emt 0:00:00]} 47. f4 {[%emt 0:00:00]} Rc6 {[%emt 0:00:00]} 48. Ra5 {[%emt 0:00:00]} Rc1 {[%emt 0:00:00]} 49. Bc5 {[%emt 0:00:00]} Kh7 {[%emt 0:00:00]} 50. Be7 {[%emt 0:00:00]} Kg8 {[%emt 0:00:00]} 51. Kd2 {[%emt 0:00:00]} Rc4 {[%emt 0:00:00]} 52. Rb5 {[%emt 0:00:00]} Kh7 {[%emt 0:00:00]} 53. Rb8 {[%emt 0:00:00]} Rc8 {[%emt 0:00:00]} 54. Rb7 {[%emt 0:00:25]} Rc4 {[%emt 0:00:00]} 55. Bf6 {[%emt 0:00:12]} Kg8 {[%emt 0:00:00]} 56. Rb8+ {[%emt 0:03:04]} Rc8 {[%emt 0:00:00]} 57. Rxc8+ {[%emt 0:01:25]} 1/2-1/2

[Event "GER-chT Youth Countries 2020"]
[Site "Berlin"]
[Date "2020.10.02"]
[Round "5"]
[White "Maetzkow, Maximilian Paul"]
[Black "Runte, Moritz"]
[Result "1/2-1/2"]
[ECO "B27"]
[WhiteElo "2242"]
[BlackElo "2114"]
[Annotator "ChessBase"]
[PlyCount "52"]
[EventDate "2020.09.30"]
[EventType "team-tourn"]
[EventRounds "7"]
[EventCountry "GER"]
[SourceTitle "playchess.com"]
[Source "ChessBase"]
[SourceQuality "1"]
[TimeControl "30/5400+30:0"]

1. e4 {[%emt 0:00:00]} c5 {[%emt 0:00:00]} 2. Nf3 {[%emt 0:00:24]} g6 {[%emt 0:00:05]} 3. g3 {[%emt 0:00:22]} Bg7 {[%emt 0:01:31]} 4. Bg2 {[%emt 0:00:58]} Nc6 {[%emt 0:02:35]} 5. O-O {[%emt 0:00:06]} d6 {[%emt 0:01:31]} 6. c3 {[%emt 0:00:09]} e5 {[%emt 0:01:17]} 7. Na3 {[%emt 0:02:29]} Nge7 {[%emt 0:04:25]} 8. Nc2 {[%emt 0:01:06]} f5 {[%emt 0:09:53]} 9. exf5 {[%emt 0:01:17]} Bxf5 {[%emt 0:07:14]} 10. d3 {[%emt 0:10:57]} Qd7 {[%emt 0:06:53]} 11. Ne3 {[%emt 0:04:22]} Bh3 {[%emt 0:03:36]} 12. Bxh3 {[%emt 0:00:43]} Qxh3 {[%emt 0:00:08]} 13. Ng5 {[%emt 0:00:35]} Qd7 {[%emt 0:01:41]} 14. Qg4 {[%emt 0:00:13]} Qxg4 {[%emt 0:03:08]} 15. Nxg4 {[%emt 0:00:02]} Kd7 {[%emt 0:01:49]} 16. f4 {[%emt 0:03:31]} h5 {[%emt 0:02:34]} 17. Nf2 {[%emt 0:00:12]} Rhf8 {[%emt 0:05:01]} 18. Bd2 {[%emt 0:09:49]} b6 {[%emt 0:05:27]} 19. Rae1 {[%emt 0:03:14]} Bh6 {[%emt 0:03:19]} 20. Kg2 {[%emt 0:04:31]} Nf5 {[%emt 0:05:10]} 21. Nfh3 {[%emt 0:07:29]} Rae8 {[%emt 0:11:35]} 22. Nh7 {[%emt 0:00:57]} Rf7 {[%emt 0:01:12]} 23. N3g5 {[%emt 0:00:06]} Bxg5 {[%emt 0:00:38]} 24. Nxg5 {[%emt 0:00:07]} Rfe7 {[%emt 0:00:57]} 25. Ne4 {[%emt 0:02:09]} Re6 {[%emt 0:00:26]} 26. Ng5 {[%emt 0:02:25]} R6e7 {[%emt 0:00:32]} 1/2-1/2